fUST/lending_fUST_20250713
["ID","MTS","AMOUNT","RATE_DAILY","PERIOD"]
[371636445,1752370248764,-179.03,0.00018904,2]
[371636446,1752370248774,-460.0,0.00018904,2]
[371636447,1752370248783,-489.05,0.00018904,2]
[371636448,1752370248793,-540.45650576,0.00018904,2]
[371636449,1752370248801,-460.0,0.00018904,2]
[371636450,1752370248810,-460.0,0.00018904,2]
[371636451,1752370248819,-460.0,0.00018904,2]
[371636452,1752370248828,-424.41,0.00018904,2]
[371636453,1752370248837,-275.27428047,0.00018904,2]
[371636454,1752370248848,-1289.35,0.00018904,2]
[371636455,1752370248858,-902.33,0.00018904,2]
[371636456,1752370248868,-560.07,0.00018904,2]
[371636457,1752370248879,-2500.0,0.00018964,2]
[371636458,1752370248889,-1704.67222337,0.00019117,2]
[371636459,1752370248900,-460.0,0.00019167,2]
[371636460,1752370248910,-151.0,0.00019167,2]
[371636461,1752370248920,-151.0,0.00019178,2]
[371636462,1752370248930,-154.097692,0.00019178,2]
[371636463,1752370248940,-151.0,0.00019178,2]
[371636464,1752370248950,-286.8782,0.00019178,2]
[371636465,1752370248960,-460.0,0.00019178,2]
[371636466,1752370248970,-460.0,0.00019178,2]
[371636467,1752370248980,-460.0,0.00019178,2]
[371636468,1752370248989,-460.0,0.00019178,2]
[371636469,1752370248999,-151.0,0.00019178,2]
[371636470,1752370249009,-151.0,0.00019178,2]
[371636471,1752370249018,-460.0,0.00019178,2]
[371636472,1752370249028,-460.0,0.00019178,2]
[371636473,1752370249038,-460.0,0.00019178,2]
[371636474,1752370249048,-489.05,0.00019178,2]
[371636475,1752370249058,-460.0,0.00019178,2]
[371636476,1752370249068,-460.0,0.00019178,2]
[371636477,1752370249078,-460.0,0.00019178,2]
[371636478,1752370249088,-1289.35,0.00019178,2]
[371636479,1752370249098,-902.33,0.00019178,2]
[371636480,1752370249108,-560.07,0.00019178,2]
[371636481,1752370249118,-213.153492,0.00019178,2]
[371636482,1752370249128,-666.0,0.00019178,2]
[371636483,1752370249137,-151.0,0.00019205,2]
[371636484,1752370249147,-151.0,0.00019205,2]
[371636485,1752370249157,-151.0,0.00019233,2]
[371636486,1752370249167,-246.64289271,0.00019233,2]
[371636487,1752370249176,-222.99778359,0.0001926,2]
[371636488,1752370249186,-151.0,0.00019329,2]
[371636489,1752370249195,-151.0,0.00019329,2]
[371636490,1752370249205,-151.0,0.00019329,2]
[371636491,1752370249215,-151.0,0.00019329,2]
[371636492,1752370249225,-151.0,0.00019329,2]
[371636493,1752370249235,-151.0,0.00019329,2]
[371636494,1752370249245,-151.0,0.00019329,2]
[371636495,1752370249256,-100000.0,0.00019329,2]
[371636496,1752370249266,-460.0,0.00019441,2]
[371636497,1752370249277,-492.07,0.00019452,2]
[371636498,1752370249287,-460.0,0.00019452,2]
[371636499,1752370249300,-460.0,0.00019452,2]
[371636500,1752370249311,-460.0,0.00019452,2]
[371636501,1752370249320,-460.0,0.00019452,2]
[371636502,1752370249331,-583.6,0.00019452,2]
[371636503,1752370249341,-475.95,0.00019452,2]
[371636504,1752370249352,-489.05,0.00019452,2]
[371636505,1752370249363,-460.0,0.00019452,2]
[371636506,1752370249373,-460.0,0.00019452,2]
[371636507,1752370249384,-460.0,0.00019452,2]
[371636508,1752370249395,-1289.35,0.00019452,2]
[371636509,1752370249405,-902.33,0.00019452,2]
[371636510,1752370249415,-560.07,0.00019452,2]
[371636511,1752370249425,-9116.24,0.000195,2]
[371636512,1752370249436,-3007.57266618,0.00019512,2]
[371636513,1752370249446,-460.0,0.00019715,2]
[371636514,1752370249457,-460.0,0.00019726,2]
[371636515,1752370249467,-460.0,0.00019726,2]
[371636516,1752370249477,-460.0,0.00019726,2]
[371636517,1752370249487,-460.0,0.00019726,2]
[371636518,1752370249497,-489.05,0.00019726,2]
[371636519,1752370249507,-556.28,0.00019726,2]
[371636520,1752370249518,-460.0,0.00019726,2]
[371636521,1752370249528,-460.0,0.00019726,2]
[371636522,1752370249538,-1289.35,0.00019726,2]
[371636523,1752370249547,-902.33,0.00019726,2]
[371636524,1752370249557,-560.07,0.00019726,2]
[371636525,1752370249567,-877.95,0.000198,2]
[371636526,1752370249578,-2294.26963274,0.00019852,2]
[371636527,1752370249588,-151.0,0.00019852,2]
[371636528,1752370249598,-157.69172357,0.00019852,2]
[371636529,1752370249612,-151.0,0.00019852,2]
[371636530,1752370249622,-207.4,0.00019852,2]
[371636531,1752370249632,-151.0,0.00019852,2]
[371636532,1752370249643,-151.0,0.00019852,2]
[371636533,1752370249652,-151.0,0.00019852,2]
[371636534,1752370249662,-151.0,0.00019852,2]
[371636535,1752370249672,-151.0,0.00019852,2]
[371636536,1752370249682,-1025.33138836,0.00019852,2]
[371636537,1752370249693,-151.0,0.00019852,2]
[371636538,1752370249703,-151.0,0.00019852,2]
[371636539,1752370249713,-151.0,0.00019852,2]
[371636540,1752370249723,-152.24654196,0.00019852,2]
[371636541,1752370249733,-496.57,0.00019989,2]
[371636542,1752370249743,-151.0,0.0001999,2]
[371636543,1752370249753,-151.0,0.0001999,2]
[371636544,1752370249762,-151.0,0.0001999,2]
[371636545,1752370249772,-151.0,0.0002,2]
[371636546,1752370249782,-151.0,0.0002,2]
[371636547,1752370249791,-177.777954,0.0002,2]
[371636548,1752370249802,-460.0,0.0002,2]
[371636549,1752370249812,-460.0,0.0002,2]
[371636550,1752370249823,-606.92,0.0002,2]
[371636551,1752370249833,-460.0,0.0002,2]
[371636552,1752370249843,-69528.3680085,0.0002,2]
[371636553,1752370249854,-489.05,0.0002,2]
[371636554,1752370249864,-460.0,0.0002,2]
[371636555,1752370249874,-560.77,0.0002,2]
[371636556,1752370249883,-1289.35,0.0002,2]
[371636557,1752370249894,-902.33,0.0002,2]
[371636558,1752370249903,-560.07,0.0002,2]
[371636559,1752370249913,-323.30994189,0.0002009,2]
[371636560,1752370249922,-422.975,0.00020094,2]
[371636561,1752370249932,-231.449004,0.00020187,2]
[371636562,1752370249942,-460.0,0.00020273,2]
[371636563,1752370249952,-460.0,0.00020273,2]
[371636564,1752370249962,-460.0,0.00020273,2]
[371636565,1752370249972,-489.05,0.00020273,2]
[371636566,1752370249982,-460.0,0.00020273,2]
[371636567,1752370249991,-1289.35,0.00020273,2]
[371636568,1752370250001,-902.33,0.00020273,2]
[371636569,1752370250011,-560.07,0.00020273,2]
[371636570,1752370250021,-501.009275,0.00020356,2]
[371636571,1752370250031,-500.79075101,0.00020356,2]
[371636572,1752370250041,-500.0,0.00020356,2]
[371636573,1752370250051,-569.39,0.00020547,2]
[371636574,1752370250061,-266.91,0.00020547,2]
[371636575,1752370250072,-460.0,0.00020547,2]
[371636576,1752370250083,-489.05,0.00020547,2]
[371636577,1752370250093,-460.0,0.00020547,2]
[371636578,1752370250104,-1289.35,0.00020547,2]
[371636579,1752370250114,-902.33,0.00020547,2]
[371636580,1752370250124,-560.07,0.00020547,2]
[371636581,1752370250134,-460.0,0.00020821,2]
[371636582,1752370250144,-489.05,0.00020821,2]
[371636583,1752370250154,-460.0,0.00020821,2]
[371636584,1752370250164,-1289.35,0.00020821,2]
[371636585,1752370250174,-902.33,0.00020821,2]
[371636586,1752370250184,-560.07,0.00020821,2]
[371636587,1752370250193,-151.0,0.0002089,2]
[371636588,1752370250203,-151.0,0.0002089,2]
[371636589,1752370250213,-151.0,0.0002089,2]
[371636590,1752370250223,-151.0,0.0002089,2]
[371636591,1752370250234,-151.0,0.0002089,2]
[371636592,1752370250345,-151.0,0.000209,2]
[371636593,1752370250357,-9116.24,0.000209,2]
[371636594,1752370250368,-151.0,0.000209,2]
[371636595,1752370250379,-501.01071862,0.00020904,2]
[371636596,1752370250389,-2737.32,0.0002098,10]
[371636597,1752370250398,-4279.15,0.0002098,10]
[371636598,1752370250407,-3565.96,0.0002098,10]
[371636599,1752370250417,-151.0,0.0002099,2]
[371636600,1752370250427,-151.0,0.0002099,2]
[371636601,1752370250436,-151.0,0.0002099,2]
[371636602,1752370250445,-480.657586,0.0002099,2]
[371636603,1752370250455,-480.657586,0.0002099,2]
[371636604,1752370250465,-151.0,0.0002099,2]
[371636605,1752370250475,-151.0,0.0002099,2]
[371636606,1752370250484,-151.0,0.0002099,2]
[371636607,1752370250494,-151.0,0.0002099,2]
[371636608,1752370250503,-151.0,0.0002099,2]
[371636609,1752370250512,-151.0,0.0002099,2]
[371636610,1752370250520,-151.0,0.0002099,2]
[371636611,1752370250528,-200.073703,0.0002099,2]
[371636612,1752370250537,-151.0,0.0002099,2]
[371636613,1752370250545,-151.0,0.0002099,2]
[371636614,1752370250554,-151.0,0.0002099,2]
[371636615,1752370250563,-151.0,0.0002099,2]
[371636616,1752370250572,-151.178221,0.0002099,2]
[371636617,1752370250582,-151.0,0.0002099,2]
[371636618,1752370250592,-151.0,0.0002099,2]
[371636619,1752370250603,-151.0,0.0002099,2]
[371636620,1752370250615,-151.0,0.0002099,2]
[371636621,1752370250625,-151.0,0.0002099,2]
[371636622,1752370250635,-151.0,0.0002099,2]
[371636623,1752370250644,-151.0,0.0002099,2]
[371636624,1752370250654,-274.45,0.00021,2]
[371636625,1752370250663,-1704.67222337,0.00021013,2]
[371636626,1752370250673,-460.0,0.00021095,2]
[371636627,1752370250682,-489.05,0.00021095,2]
[371636628,1752370250692,-460.0,0.00021095,2]
[371636629,1752370250701,-1289.35,0.00021095,2]
[371636630,1752370250710,-902.33,0.00021095,2]
[371636631,1752370250722,-560.07,0.00021095,2]
[371636632,1752370250731,-33974.00210387,0.00021167,2]
[371636633,1752370250741,-215.0738,0.00021221,2]
[371636634,1752370250750,-177.777954,0.00021248,2]
[371636635,1752370250761,-877.95,0.000213,2]
[371636636,1752370250770,-323.30994189,0.0002134,2]
[371636637,1752370250781,-460.0,0.00021369,2]
[371636638,1752370250791,-489.05,0.00021369,2]
[371636639,1752370250802,-460.0,0.00021369,2]
[371636640,1752370250812,-1289.35,0.00021369,2]
[371636641,1752370250821,-902.33,0.00021369,2]
[371636642,1752370250832,-560.07,0.00021369,2]
[371636643,1752370250842,-289.292776,0.00021461,4]
[371636644,1752370250855,-151.0,0.00021574,2]
[371636645,1752370250864,-460.0,0.00021643,2]
[371636646,1752370250874,-489.05,0.00021643,2]
[371636647,1752370250883,-460.0,0.00021643,2]
[371636648,1752370250893,-1289.35,0.00021643,2]
[371636649,1752370250903,-902.33,0.00021643,2]
[371636650,1752370250913,-560.07,0.00021643,2]
[371636651,1752370250922,-160.0,0.00021833,3]
[371636652,1752370250933,-971.91390562,0.00021899,2]
[371636653,1752370250942,-405.33342856,0.00021899,2]
[371636654,1752370250951,-151.0,0.000219,2]
[371636655,1752370250961,-151.0,0.000219,2]
[371636656,1752370250970,-151.0,0.000219,2]
[371636657,1752370250980,-214.25614385,0.000219,3]
[371636658,1752370250989,-160.0,0.000219,3]
[371636659,1752370250999,-12595.82069269,0.000219,3]
[371636660,1752370251008,-151.0,0.000219,2]
[371636661,1752370251018,-353100.86144693,0.00021911,2]
[371636662,1752370251115,-10000.89999258,0.00021911,2]
[371636663,1752370251171,-739.27818704,0.000169,2]
[371636664,1752370251180,-167.89840471,0.0001721,2]
[371636665,1752370251424,-571.37978233,0.0001721,2]
[371636666,1752370251434,-460.0,0.0001726,2]
[371636667,1752370251444,-460.0,0.0001726,2]
[371636668,1752370251454,-739.27818704,0.00017521,2]
[371636669,1752370251463,-469.42704629,0.00017534,2]
[371636670,1752370251473,-460.0,0.00017534,2]
[371636671,1752370251484,-460.0,0.00017808,2]
[371636672,1752370251493,-739.27818704,0.00017831,2]
[371636673,1752370251503,-460.0,0.00018082,2]
[371636674,1752370251512,-409.8774773,0.00018141,2]
[371636676,1752370327886,1524.94927183,0.00025202,120]
[371636678,1752370524884,233.526158,0.00013699,2]
[371636680,1752370724511,205.8344481,0.000222,69]
[371636681,1752370859245,5091.4043226,0.00015755,2]
[371636709,1752371349391,1616.15884927,0.00027,120]
[371636755,1752371432679,-300.0,0.00016337,2]
[371636757,1752371432689,-163.86876544,0.00016338,2]
[371636759,1752371432699,-614.03251656,0.00016338,2]
[371636761,1752371432710,-2675.19788194,0.00016338,2]
[371636790,1752371436677,-20000.0,0.00016338,2]
[371636794,1752371438961,-61908.47097338,0.00016338,2]
[371636795,1752371438972,-471.78405578,0.00016438,2]
[371636796,1752371438981,-460.0,0.00016438,2]
[371636797,1752371438991,-465.10241635,0.00016438,2]
[371636798,1752371439000,-460.0,0.00016438,2]
[371636799,1752371439009,-460.0,0.00016438,2]
[371636800,1752371439019,-461.4556805,0.00016438,2]
[371636801,1752371439029,-439.99288979,0.00016438,2]
[371636802,1752371439038,-461.39437186,0.00016438,2]
[371636803,1752371439048,-460.0,0.00016438,2]
[371636804,1752371439058,-455.54840076,0.00016438,2]
[371636805,1752371439067,-461.38453073,0.00016438,2]
[371636806,1752371439077,-460.0,0.00016438,2]
[371636807,1752371439087,-463.52450557,0.00016438,2]
[371636808,1752371439096,-461.07052971,0.00016438,2]
[371636809,1752371439106,-461.75558336,0.00016438,2]
[371636810,1752371439115,-460.0,0.00016438,2]
[371636811,1752371439124,-530.91107712,0.00016438,2]
[371636812,1752371439135,-460.0,0.00016438,2]
[371636813,1752371439144,-463.11646515,0.00016438,2]
[371636814,1752371439154,-460.73607545,0.00016438,2]
[371636815,1752371439164,-461.85749087,0.00016438,2]
[371636816,1752371439174,-462.37109837,0.00016438,2]
[371636817,1752371439183,-576.24951594,0.00016438,2]
[371636818,1752371439193,-460.0,0.00016438,2]
[371636819,1752371439203,-326.80173181,0.00016438,2]
[371636820,1752371439213,-465.03319463,0.00016438,2]
[371636821,1752371439226,-467.50121521,0.00016438,2]
[371636822,1752371439235,-357.16964185,0.00016438,2]
[371636823,1752371439246,-463.27800861,0.00016438,2]
[371636824,1752371439256,-464.39857313,0.00016438,2]
[371636825,1752371439265,-467.65174943,0.00016438,2]
[371636826,1752371439275,-189.04360871,0.00016438,2]
[371636827,1752371439284,-299.04122766,0.00016438,2]
[371636828,1752371439295,-470.95929365,0.00016438,2]
[371636829,1752371439305,-160.97204487,0.00016438,2]
[371636830,1752371439314,-463.9127449,0.00016438,2]
[371636831,1752371439325,-467.67127339,0.00016438,2]
[371636832,1752371439334,-465.14277426,0.00016438,2]
[371636833,1752371439344,-464.61482923,0.00016438,2]
[371636834,1752371439353,-460.0,0.00016438,2]
[371636835,1752371439363,-460.0,0.00016438,2]
[371636836,1752371439372,-460.0,0.00016438,2]
[371636837,1752371439382,-460.0,0.00016438,2]
[371636838,1752371439392,-460.0,0.00016438,2]
[371636839,1752371439401,-460.0,0.00016438,2]
[371636840,1752371439411,-460.0,0.00016438,2]
[371636841,1752371439420,-474.1393207,0.00016438,2]
[371636842,1752371439429,-460.0,0.00016438,2]
[371636843,1752371439439,-460.0,0.00016438,2]
[371636844,1752371439449,-460.0,0.00016438,2]
[371636845,1752371439459,-465.82886038,0.00016438,2]
[371636846,1752371439468,-478.37397861,0.00016438,2]
[371636847,1752371439478,-460.0,0.00016438,2]
[371636848,1752371439488,-463.88270936,0.00016438,2]
[371636849,1752371439498,-470.96047238,0.00016438,2]
[371636850,1752371439508,-159.86138188,0.00016438,2]
[371636851,1752371439518,-555.31653507,0.00016438,2]
[371636852,1752371439528,-460.0,0.00016438,2]
[371636853,1752371439538,-460.0,0.00016438,2]
[371636854,1752371439547,-472.72143415,0.00016438,2]
[371636855,1752371439557,-460.0,0.00016438,2]
[371636856,1752371439567,-475.42891849,0.00016438,2]
[371636857,1752371439576,-467.44095674,0.00016438,2]
[371636858,1752371439586,-460.67253724,0.00016438,2]
[371636859,1752371439607,-467.70552235,0.00016438,2]
[371636860,1752371439617,-464.94460633,0.00016438,2]
[371636861,1752371439819,-462.54914876,0.00016438,2]
[371636862,1752371439830,-491.25718027,0.00016438,2]
[371636863,1752371439841,-461.77025191,0.00016438,2]
[371636864,1752371439850,-462.93964972,0.00016438,2]
[371636865,1752371439859,-469.6178997,0.00016438,2]
[371636866,1752371439868,-460.0,0.00016438,2]
[371636867,1752371439877,-465.92418401,0.00016438,2]
[371636868,1752371439887,-461.75099586,0.00016438,2]
[371636869,1752371439895,-462.16166649,0.00016438,2]
[371636870,1752371439904,-460.0,0.00016438,2]
[371636871,1752371439912,-460.0,0.00016438,2]
[371636872,1752371439922,-460.0,0.00016438,2]
[371636873,1752371439932,-463.37580608,0.00016438,2]
[371636874,1752371439941,-463.90850438,0.00016438,2]
[371636875,1752371439951,-463.19767269,0.00016438,2]
[371636876,1752371439960,-464.02381656,0.00016438,2]
[371636877,1752371439970,-466.49075924,0.00016438,2]
[371636878,1752371439980,-460.0,0.00016438,2]
[371636879,1752371439989,-500.0,0.00016473,2]
[371636880,1752371439999,-500.0,0.00016473,2]
[371636881,1752371440009,-501.37112209,0.00016473,2]
[371636882,1752371440018,-501.12151529,0.00016473,2]
[371636883,1752371440028,-465.80706725,0.00016712,2]
[371636884,1752371440038,-460.0,0.00016712,2]
[371636885,1752371440048,-466.59666685,0.00016712,2]
[371636886,1752371440057,-460.0,0.00016712,2]
[371636887,1752371440067,-256.31941786,0.00016712,2]
[371636888,1752371440076,-230.25046431,0.00016712,2]
[371636889,1752371440086,-460.0,0.00016712,2]
[371636890,1752371440095,-470.62846302,0.00016712,2]
[371636891,1752371440105,-460.0,0.00016712,2]
[371636892,1752371440115,-470.3929181,0.00016712,2]
[371636893,1752371440124,-460.0,0.00016712,2]
[371636894,1752371440134,-460.0,0.00016712,2]
[371636896,1752371440143,-476.10419817,0.00016712,2]
[371636897,1752371440153,-464.04955844,0.00016712,2]
[371636898,1752371440162,-474.28452548,0.00016712,2]
[371636899,1752371440172,-460.0,0.00016712,2]
[371636901,1752371440181,-460.0,0.00016712,2]
[371636903,1752371440190,-465.48192467,0.00016712,2]
[371636905,1752371440199,-460.0,0.00016712,2]
[371636906,1752371440209,-461.96721804,0.00016712,2]
[371636907,1752371440221,-460.0,0.00016712,2]
[371636908,1752371440230,-281.42296728,0.00016712,2]
[371636909,1752371440240,-460.0,0.00016712,2]
[371636910,1752371440249,-471.81913088,0.00016712,2]
[371636911,1752371440259,-627.04517966,0.000169,2]
[371636912,1752371440270,-164.14,0.00016976,3]
[371636913,1752371440280,-492.45,0.00016976,3]
[371636915,1752371440290,-460.0,0.00016986,2]
[371636917,1752371440301,-465.09424804,0.00016986,2]
[371636919,1752371440310,-460.0,0.00016986,2]
[371636921,1752371440320,-460.0,0.00016986,2]
[371636923,1752371440330,-450.12499481,0.00016986,2]
[371636925,1752371440339,-460.0,0.00016986,2]
[371636927,1752371440349,-460.0,0.00016986,2]
[371636929,1752371440359,-460.0,0.00016986,2]
[371636932,1752371440368,-460.0,0.00016986,2]
[371636934,1752371440378,-236.05042572,0.00016986,2]
[371636936,1752371440388,-517.35427284,0.00017021,2]
[371636938,1752371440399,-500.0,0.00017021,2]
[371636940,1752371440408,-4567.99953488,0.00017089,2]
[371636942,1752371440417,-627.04517952,0.0001721,2]
[371636944,1752371440427,-460.0,0.0001726,2]
[371636945,1752371440437,-460.0,0.0001726,2]
[371636946,1752371440447,-246.13,0.0001726,2]
[371636947,1752371440458,-460.0,0.0001726,2]
[371636948,1752371440468,-523.8988468,0.0001726,2]
[371636949,1752371440478,-207.4605346,0.0001726,2]
[371636950,1752371440487,-460.0,0.0001726,2]
[371636951,1752371440497,-151.0,0.00017321,2]
[371636952,1752371440507,-555.305537,0.00017397,2]
[371636953,1752371440516,-555.305537,0.00017397,2]
[371636954,1752371440526,-627.04517952,0.00017521,2]
[371636955,1752371440536,-262.64622997,0.00017534,2]
[371636956,1752371440546,-460.0,0.00017534,2]
[371636957,1752371440556,-460.0,0.00017534,2]
[371636958,1752371440565,-470.51867877,0.00017534,2]
[371636959,1752371440575,-214.25614385,0.00017687,2]
[371636960,1752371440584,-12595.82069269,0.00017687,2]
[371636961,1752371440593,-215.38668925,0.00017687,2]
[371636962,1752371440603,-151.0,0.00017791,2]
[371636964,1752371440612,-555.305537,0.00017808,2]
[371636966,1752371440622,-555.305537,0.00017808,2]
[371636968,1752371440632,-460.0,0.00017808,2]
[371636970,1752371440641,-627.04517952,0.00017831,2]
[371636972,1752371440651,-420.0,0.00017856,2]
[371636975,1752371440661,-151.0,0.00018082,2]
[371636977,1752371440670,-460.0,0.00018082,2]
[371636979,1752371440680,-627.04517952,0.00018141,2]
[371636981,1752371440690,-555.305537,0.00018248,2]
[371636983,1752371440699,-555.305537,0.00018248,2]
[371636985,1752371440709,-328.28,0.00018346,3]
[371636987,1752371440718,-474.27063865,0.00018356,2]
[371636989,1752371440727,-627.04517952,0.00018452,2]
[371636991,1752371440737,-151.0,0.0001863,2]
[371636993,1752371440746,-627.04517952,0.00018762,2]
[371636995,1752371440756,-555.305537,0.00018964,2]
[371636997,1752371440766,-555.305537,0.00018964,2]
[371636999,1752371440775,-627.04517952,0.00019072,2]
[371637001,1752371440785,-666.0,0.00019178,2]
[371637003,1752371440794,-170.522793,0.00019178,2]
[371637005,1752371440804,-273.21,0.000192,2]
[371637006,1752371440813,-671.97,0.000192,2]
[371637009,1752371440824,-151.57880195,0.0001926,2]
[371637011,1752371440833,-151.53698743,0.0001926,2]
[371637014,1752371440843,-151.73080558,0.0001926,2]
[371637015,1752371440853,-151.0,0.00019329,2]
[371637017,1752371440863,-555.305537,0.00019329,2]
[371637019,1752371440873,-555.305537,0.00019329,2]
[371637021,1752371440883,-627.04517952,0.00019383,2]
[371637024,1752371440893,-587.0,0.00019516,2]
[371637026,1752371440903,-627.04517952,0.00019693,2]
[371637028,1752371440914,-163.86876543,0.00019834,2]
[371637029,1752371440924,-151.0,0.00019852,2]
[371637031,1752371440934,-207.4,0.00019852,2]
[371637034,1752371440943,-216.35613,0.0002,2]
[371637036,1752371440952,-155.13764,0.0002,2]
[371637037,1752371440962,-627.04517952,0.00020003,2]
[371637040,1752371440972,-233.526158,0.00020187,2]
[371637042,1752371440982,-627.04517952,0.00020314,3]
[371637044,1752371440991,-627.04517952,0.00020624,3]
[371637046,1752371441001,-338.92,0.00020647,2]
[371637048,1752371441010,-151.0,0.000208,4]
[371637050,1752371441019,-273.21,0.000209,2]
[371637052,1752371441030,-555.305537,0.000209,2]
[371637054,1752371441039,-555.305537,0.000209,2]
[371637056,1752371441048,-671.97,0.000209,2]
[371637058,1752371441057,-460.0,0.00020934,2]
[371637060,1752371441067,-460.0,0.00020934,2]
[371637062,1752371441077,-460.0,0.00020934,2]
[371637064,1752371441086,-460.0,0.00020934,2]
[371637066,1752371441095,-460.0,0.00020934,2]
[371637068,1752371441106,-465.49474403,0.00020934,2]
[371637070,1752371441116,-600.71008213,0.00020934,2]
[371637072,1752371441125,-460.0,0.00020934,2]
[371637074,1752371441135,-460.0,0.00020934,2]
[371637076,1752371441145,-460.0,0.00020934,2]
[371637078,1752371441155,-460.0,0.00020934,2]
[371637080,1752371441165,-460.0,0.00020934,2]
[371637081,1752371441174,-460.0,0.00020934,2]
[371637083,1752371441183,-460.0,0.00020934,2]
[371637086,1752371441193,-461.30153189,0.00020934,2]
[371637088,1752371441203,-461.38711093,0.00020934,2]
[371637090,1752371441214,-460.0,0.00020934,2]
[371637091,1752371441226,-461.18976934,0.00020934,2]
[371637093,1752371441235,-465.41960242,0.00020934,2]
[371637096,1752371441246,-460.0,0.00020934,2]
[371637098,1752371441255,-460.99909339,0.00020934,2]
[371637100,1752371441266,-462.01319069,0.00020934,2]
[371637102,1752371441276,-462.2672064,0.00020934,2]
[371637104,1752371441285,-460.0,0.00020934,2]
[371637105,1752371441295,-477.25098558,0.00020934,2]
[371637108,1752371441306,-460.95140321,0.00020934,2]
[371637110,1752371441315,-462.37872973,0.00020934,2]
[371637112,1752371441324,-462.06262068,0.00020934,2]
[371637114,1752371441333,-464.48636648,0.00020934,2]
[371637115,1752371441343,-476.36688179,0.00020934,2]
[371637118,1752371441352,-460.0,0.00020934,2]
[371637119,1752371441362,-461.39900758,0.00020934,2]
[371637122,1752371441371,-460.0,0.00020934,2]
[371637123,1752371441381,-460.0,0.00020934,2]
[371637125,1752371441391,-460.0,0.00020934,2]
[371637128,1752371441401,-472.48447333,0.00020934,2]
[371637130,1752371441411,-460.0,0.00020934,2]
[371637132,1752371441420,-460.0,0.00020934,2]
[371637134,1752371441430,-455.84744255,0.00020934,2]
[371637136,1752371441439,-460.0,0.00020934,2]
[371637138,1752371441449,-460.0,0.00020934,2]
[371637140,1752371441459,-460.0,0.00020934,2]
[371637142,1752371441469,-460.0,0.00020934,2]
[371637144,1752371441479,-567.87105894,0.00020934,2]
[371637146,1752371441492,-551.48225359,0.00020934,2]
[371637148,1752371441502,-467.06262619,0.00020934,2]
[371637150,1752371441512,-469.17152933,0.00020934,2]
[371637152,1752371441521,-465.21830388,0.00020934,2]
[371637154,1752371441530,-460.0,0.00020934,2]
[371637156,1752371441540,-460.0,0.00020934,2]
[371637158,1752371441550,-460.0,0.00020934,2]
[371637160,1752371441560,-476.93978428,0.00020934,2]
[371637162,1752371441569,-460.0,0.00020934,2]
[371637164,1752371441579,-463.07669041,0.00020934,2]
[371637166,1752371441589,-469.72677151,0.00020934,2]
[371637169,1752371441599,-572.93856126,0.00020934,2]
[371637171,1752371441609,-460.0,0.00020934,2]
[371637173,1752371441619,-573.3082617,0.00020934,2]
[371637175,1752371441628,-464.87267364,0.00020934,2]
[371637176,1752371441638,-480.64048442,0.00020934,2]
[371637178,1752371441648,-466.97802068,0.00020934,2]
[371637181,1752371441657,-462.71783432,0.00020934,2]
[371637182,1752371441667,-471.78599986,0.00020934,2]
[371637185,1752371441677,-466.75911472,0.00020934,2]
[371637187,1752371441686,-484.95662827,0.00020934,2]